lending/lending_fUSD_20250819
["ID","MTS","AMOUNT","RATE_DAILY","PERIOD"]
[380254793,1755629104605,-500.0,0.00023,30]
[380254794,1755629104650,-458.43483364,0.00023,30]
[380254795,1755629104694,-400.0,0.00023273,30]
[380254796,1755629104737,-400.0,0.00023273,30]
[380254797,1755629104780,-400.0,0.00023273,30]
[380254798,1755629104823,-400.0,0.00023273,30]
[380254799,1755629104865,-420.72734829,0.00023273,30]
[380254800,1755629104909,-400.0,0.00023273,30]
[380254801,1755629104951,-400.0,0.00023273,30]
[380254802,1755629104995,-400.0,0.00023273,30]
[380254803,1755629105039,-400.0,0.00023273,30]
[380254804,1755629105082,-158.62887853,0.00023273,30]
[380254805,1755629105126,-400.0,0.00023273,30]
[380254806,1755629105173,-400.0,0.00023273,30]
[380254807,1755629105218,-400.0,0.00023273,30]
[380254808,1755629105261,-400.0,0.00023273,30]
[380254809,1755629105303,-400.0,0.00023273,30]
[380254810,1755629105348,-400.0,0.00023273,30]
[380254811,1755629105392,-400.0,0.00023273,30]
[380254812,1755629105439,-400.0,0.00023273,30]
[380254813,1755629105487,-400.0,0.00023273,30]
[380254814,1755629105538,-400.0,0.00023273,30]
[380254815,1755629105585,-400.0,0.00023273,30]
[380254816,1755629105631,-400.0,0.00023273,30]
[380254817,1755629105680,-1546.63,0.00023273,30]
[380254818,1755629105727,-400.0,0.00023273,30]
[380254819,1755629105773,-400.0,0.00023273,30]
[380254820,1755629105816,-400.0,0.00023273,30]
[380254821,1755629105861,-391.94353556,0.00023273,30]
[380254822,1755629105902,-400.0,0.00023273,30]
[380254823,1755629105942,-400.0,0.00023273,30]
[380254824,1755629105985,-400.0,0.00023273,30]
[380254825,1755629106025,-400.0,0.00023273,30]
[380254826,1755629106066,-400.0,0.00023273,30]
[380254827,1755629106109,-400.0,0.00023273,30]
[380254828,1755629106150,-408.14,0.00023273,30]
[380254829,1755629106192,-1356.98,0.00023273,30]
[380254830,1755629106235,-2500.24,0.00023273,30]
[380254831,1755629106276,-400.0,0.00023273,30]
[380254832,1755629106317,-400.0,0.00023273,30]
[380254833,1755629106361,-400.0,0.00023273,30]
[380254834,1755629106403,-400.0,0.00023273,30]
[380254835,1755629106449,-400.0,0.00023273,30]
[380254836,1755629106492,-400.0,0.00023273,30]
[380254837,1755629106533,-400.0,0.00023273,30]
[380254838,1755629106577,-1500.68,0.00023273,30]
[380254839,1755629106619,-571.12,0.00023273,30]
[380254840,1755629106661,-400.0,0.00023273,30]
[380254841,1755629106702,-400.0,0.00023273,30]
[380254842,1755629106742,-400.0,0.00023273,30]
[380254843,1755629106782,-400.0,0.00023273,30]
[380254844,1755629106821,-1837.02,0.00023273,30]
[380254845,1755629106861,-619.32,0.00023273,30]
[380254846,1755629106896,-549.78,0.00023273,30]
[380254847,1755629106930,-400.0,0.00023273,30]
[380254848,1755629106970,-400.0,0.00023273,30]
[380254849,1755629107006,-705.78,0.00023273,30]
[380254850,1755629107043,-400.0,0.00023273,30]
[380254851,1755629107082,-806.89,0.00023273,30]
[380254852,1755629107126,-400.0,0.00023273,30]
[380254853,1755629107170,-400.0,0.00023273,30]
[380254854,1755629107213,-1081.56,0.00023273,30]
[380254855,1755629107256,-400.0,0.00023273,30]
[380254856,1755629107299,-421.78,0.00023273,30]
[380254857,1755629107340,-1207.42,0.00023273,30]
[380254858,1755629107379,-400.0,0.00023273,30]
[380254859,1755629107417,-400.0,0.00023273,30]
[380254860,1755629107452,-1269.26,0.00023273,30]
[380254861,1755629107488,-400.0,0.00023273,30]
[380254862,1755629107524,-400.0,0.00023273,30]
[380254863,1755629107560,-1163.74,0.00023273,30]
[380254864,1755629107597,-820.7,0.00023273,30]
[380254865,1755629107633,-400.0,0.00023273,30]
[380254866,1755629107669,-1759.86,0.00023273,30]
[380254867,1755629107985,-407.3,0.00023273,30]
[380254868,1755629108026,-400.0,0.00023273,30]
[380254869,1755629108063,-1136.92,0.00023273,30]
[380254870,1755629108101,-1391.2,0.00023273,30]
[380254871,1755629108140,-1852.53,0.00023273,30]
[380254872,1755629108182,-400.0,0.00023273,30]
[380254873,1755629108223,-1192.44,0.00023273,30]
[380254874,1755629108264,-480.15,0.00023273,30]
[380254875,1755629108305,-835.15,0.00023273,30]
[380254876,1755629108346,-2807.37,0.00023273,30]
[380254877,1755629108387,-400.0,0.00023273,30]
[380254878,1755629108427,-400.0,0.00023273,30]
[380254879,1755629108466,-400.0,0.00023273,30]
[380254880,1755629108503,-302.48277047,0.00023273,30]
[380254881,1755629108540,-400.0,0.00023273,30]
[380254882,1755629108578,-400.0,0.00023273,30]
[380254883,1755629108616,-400.0,0.00023273,30]
[380254884,1755629108653,-561.73,0.00023273,30]
[380254885,1755629108690,-400.0,0.00023273,30]
[380254886,1755629108728,-664.52,0.00023273,30]
[380254887,1755629108767,-400.0,0.00023273,30]
[380254888,1755629108805,-518.49,0.00023273,30]
[380254889,1755629108845,-400.0,0.00023273,30]
[380254890,1755629108884,-741.88,0.00023273,30]
[380254891,1755629108923,-400.0,0.00023273,30]
[380254892,1755629108961,-400.0,0.00023273,30]
[380254893,1755629108999,-400.0,0.00023273,30]
[380254894,1755629109040,-400.0,0.00023273,30]
[380254895,1755629109082,-818.83,0.00023273,30]
[380254896,1755629109122,-400.0,0.00023273,30]
[380254897,1755629109168,-1316.79,0.00023273,30]
[380254898,1755629109211,-681.75,0.00023273,30]
[380254899,1755629109260,-400.0,0.00023273,30]
[380254900,1755629109311,-474.85,0.00023273,30]
[380254901,1755629109365,-400.0,0.00023273,30]
[380254902,1755629109416,-1695.14,0.00023273,30]
[380254903,1755629109460,-2416.26,0.00023273,30]
[380254904,1755629109500,-400.0,0.00023273,30]
[380254905,1755629109538,-400.0,0.00023273,30]
[380254906,1755629109577,-400.0,0.00023273,30]
[380254907,1755629109616,-400.0,0.00023273,30]
[380254908,1755629109654,-400.0,0.00023273,30]
[380254909,1755629109691,-519.18,0.00023273,30]
[380254910,1755629109730,-655.03,0.00023273,30]
[380254911,1755629109768,-1073.42,0.00023273,30]
[380254912,1755629109805,-400.0,0.00023273,30]
[380254913,1755629109845,-627.5,0.00023273,30]
[380254914,1755629109887,-524.56,0.00023273,30]
[380254915,1755629109928,-400.0,0.00023273,30]
[380254916,1755629109985,-844.68,0.00023273,30]
[380254917,1755629110032,-1589.75,0.00023273,30]
[380254918,1755629110076,-1587.97,0.00023273,30]
[380254919,1755629110136,-400.0,0.00023273,30]
[380254920,1755629110183,-400.0,0.00023273,30]
[380254921,1755629110228,-400.0,0.00023273,30]
[380254922,1755629110275,-1845.81,0.00023273,30]
[380254923,1755629110321,-400.0,0.00023273,30]
[380254924,1755629110370,-400.0,0.00023273,30]
[380254925,1755629110414,-1955.45,0.00023273,30]
[380254926,1755629110456,-1954.71,0.00023273,30]
[380254927,1755629110496,-400.0,0.00023273,30]
[380254928,1755629110539,-400.0,0.00023273,30]
[380254929,1755629110580,-1374.34,0.00023273,30]
[380254930,1755629110622,-400.0,0.00023273,30]
[380254931,1755629110661,-400.0,0.00023273,30]
[380254932,1755629110700,-916.39,0.00023273,30]
[380254933,1755629110739,-400.0,0.00023273,30]
[380254934,1755629110780,-754.64,0.00023273,30]
[380254935,1755629110819,-400.0,0.00023273,30]
[380254936,1755629110858,-2356.99,0.00023273,30]
[380254937,1755629110896,-400.0,0.00023273,30]
[380254938,1755629110935,-481.37,0.00023273,30]
[380254939,1755629110973,-1364.27,0.00023273,30]
[380254940,1755629111014,-400.0,0.00023273,30]
[380254941,1755629111055,-561.64,0.00023273,30]
[380254942,1755629111098,-1018.08,0.00023273,30]
[380254943,1755629111141,-400.0,0.00023273,30]
[380254944,1755629111184,-736.2,0.00023273,30]
[380254945,1755629111224,-585.2,0.00023273,30]
[380254946,1755629111266,-400.0,0.00023273,30]
[380254947,1755629111312,-400.0,0.00023273,30]
[380254948,1755629111354,-1391.42,0.00023273,30]
[380254949,1755629111395,-400.0,0.00023273,30]
[380254950,1755629111433,-431.8,0.00023273,30]
[380254951,1755629111473,-2528.85,0.00023273,30]
[380254952,1755629111517,-512.23,0.00023273,30]
[380254953,1755629111560,-691.07,0.00023273,30]
[380254954,1755629111606,-981.04,0.00023273,30]
[380254955,1755629111653,-400.0,0.00023273,30]
[380254956,1755629111699,-2348.41,0.00023273,30]
[380254957,1755629111744,-1577.32,0.00023273,30]
[380254958,1755629111792,-1216.66,0.00023273,30]
[380254959,1755629111854,-400.0,0.00023273,30]
[380254960,1755629111893,-400.0,0.00023273,30]
[380254961,1755629111932,-864.91,0.00023273,30]
[380254962,1755629111969,-400.0,0.00023273,30]
[380254963,1755629112007,-1126.82,0.00023273,30]
[380254964,1755629112044,-400.0,0.00023273,30]
[380254965,1755629112083,-400.0,0.00023273,30]
[380254966,1755629112121,-400.0,0.00023273,30]
[380254967,1755629112166,-3837.84,0.00023273,30]
[380254968,1755629112208,-2597.23,0.00023273,30]
[380254969,1755629112250,-498.82,0.00023273,30]
[380254970,1755629112289,-675.23,0.00023273,30]
[380254971,1755629112328,-753.3,0.00023273,30]
[380254972,1755629112370,-400.0,0.00023273,30]
[380254973,1755629112409,-1237.24,0.00023273,30]
[380254974,1755629112448,-2375.01,0.00023273,30]
[380254975,1755629112486,-400.0,0.00023273,30]
[380254976,1755629112526,-1020.33,0.00023273,30]
[380254977,1755629112566,-3178.16,0.00023273,30]
[380254978,1755629112606,-400.0,0.00023273,30]
[380254979,1755629112646,-400.0,0.00023273,30]
[380254980,1755629112685,-400.0,0.00023273,30]
[380254981,1755629112724,-1131.44,0.00023273,30]
[380254982,1755629113100,-400.0,0.00023273,30]
[380254983,1755629113144,-2701.0,0.00023273,30]
[380254984,1755629113186,-400.0,0.00023273,30]
[380254985,1755629113226,-400.0,0.00023273,30]
[380254986,1755629113266,-400.0,0.00023273,30]
[380254987,1755629113308,-400.0,0.00023273,30]
[380254988,1755629113351,-400.0,0.00023273,30]
[380254989,1755629113393,-400.0,0.00023273,30]
[380254990,1755629113435,-933.33,0.00023273,30]
[380254991,1755629113474,-656.07,0.00023273,30]
[380254992,1755629113515,-1684.33,0.00023273,30]
[380254993,1755629113555,-400.0,0.00023273,30]
[380254994,1755629113595,-400.0,0.00023273,30]
[380254995,1755629113634,-881.94,0.00023273,30]
[380254996,1755629113672,-1363.1,0.00023273,30]
[380254997,1755629113710,-400.0,0.00023273,30]
[380254998,1755629113748,-431.64,0.00023273,30]
[380254999,1755629113787,-400.0,0.00023273,30]
[380255000,1755629113824,-400.0,0.00023273,30]
[380255001,1755629113862,-400.0,0.00023273,30]
[380255002,1755629113900,-400.0,0.00023273,30]
[380255003,1755629113939,-400.0,0.00023273,30]
[380255004,1755629113978,-400.0,0.00023273,30]
[380255005,1755629114016,-3433.31,0.00023273,30]
[380255006,1755629114055,-459.75,0.00023273,30]
[380255007,1755629114095,-400.0,0.00023273,30]
[380255008,1755629114135,-2561.92,0.00023273,30]
[380255009,1755629114175,-363.79568929,0.00023273,30]
[380255010,1755629114217,-1057.79,0.00023273,30]
[380255011,1755629114258,-400.0,0.00023273,30]
[380255012,1755629114302,-433.2,0.00023273,30]
[380255013,1755629114349,-460.94,0.00023273,30]
[380255014,1755629114397,-400.0,0.00023273,30]
[380255015,1755629114444,-400.0,0.00023273,30]
[380255016,1755629114489,-400.0,0.00023273,30]
[380255017,1755629114535,-560.69,0.00023273,30]
[380255018,1755629114576,-567.98,0.00023273,30]
[380255019,1755629114620,-400.0,0.00023273,30]
[380255020,1755629114661,-605.82,0.00023273,30]
[380255021,1755629114700,-2739.03,0.00023273,30]
[380255022,1755629114738,-2005.77,0.00023273,30]
[380255023,1755629114780,-400.0,0.00023273,30]
[380255024,1755629114822,-2283.43,0.00023273,30]
[380255025,1755629114866,-2487.69,0.00023273,30]
[380255026,1755629114907,-400.0,0.00023273,30]
[380255027,1755629114947,-829.01,0.00023273,30]
[380255028,1755629114986,-400.0,0.00023273,30]
[380255029,1755629115027,-642.34,0.00023273,30]
[380255030,1755629115068,-400.0,0.00023273,30]
[380255031,1755629115110,-1126.9,0.00023273,30]
[380255032,1755629115152,-1627.52,0.00023273,30]
[380255033,1755629115196,-400.0,0.00023273,30]
[380255034,1755629115238,-1009.11,0.00023273,30]
[380255035,1755629115281,-1867.39,0.00023273,30]
[380255036,1755629115321,-400.0,0.00023273,30]
[380255037,1755629115362,-2074.11,0.00023273,30]
[380255038,1755629115403,-1930.4,0.00023273,30]
[380255039,1755629115443,-352.77329578,0.00023273,30]
[380255040,1755629115482,-2571.15,0.00023273,30]
[380255041,1755629115522,-416.61,0.00023273,30]
[380255042,1755629115561,-400.0,0.00023273,30]
[380255043,1755629115600,-1100.61,0.00023273,30]
[380255044,1755629115639,-1192.47,0.00023273,30]
[380255045,1755629115678,-400.0,0.00023273,30]
[380255046,1755629115717,-400.0,0.00023273,30]
[380255047,1755629115755,-400.0,0.00023273,30]
[380255048,1755629115794,-400.0,0.00023273,30]
[380255049,1755629115834,-549.37,0.00023273,30]
[380255050,1755629115873,-400.0,0.00023273,30]
[380255051,1755629115911,-1375.46,0.00023273,30]
[380255052,1755629115947,-1319.44,0.00023273,30]
[380255053,1755629115984,-400.0,0.00023273,30]
[380255054,1755629116022,-568.59,0.00023273,30]
[380255055,1755629116059,-1358.46,0.00023273,30]
[380255056,1755629116099,-400.0,0.00023273,30]
[380255057,1755629116139,-400.0,0.00023273,30]
[380255058,1755629116182,-400.0,0.00023273,30]
[380255059,1755629116231,-2034.06,0.00023273,30]
[380255060,1755629116281,-2185.52,0.00023273,30]
[380255061,1755629116325,-400.0,0.00023273,30]
[380255062,1755629116367,-400.0,0.00023273,30]
[380255063,1755629116408,-400.0,0.00023273,30]
[380255064,1755629116450,-400.0,0.00023273,30]
[380255065,1755629116489,-914.96,0.00023273,30]
[380255066,1755629116531,-2503.15,0.00023273,30]
[380255067,1755629116573,-400.0,0.00023273,30]
[380255068,1755629116617,-1836.22,0.00023273,30]
[380255069,1755629116659,-726.3,0.00023273,30]
[380255070,1755629116699,-794.18,0.00023273,30]
[380255071,1755629116746,-2122.46,0.00023273,30]
[380255072,1755629116796,-400.0,0.00023273,30]
[380255073,1755629116847,-400.0,0.00023273,30]
[380255074,1755629116898,-400.0,0.00023273,30]
[380255075,1755629116940,-511.48,0.00023273,30]
[380255076,1755629116983,-400.0,0.00023273,30]
[380255077,1755629117026,-400.0,0.00023273,30]
[380255078,1755629117068,-2595.27,0.00023273,30]
[380255079,1755629117111,-2193.64,0.00023273,30]
[380255080,1755629117159,-606.76,0.00023273,30]
[380255081,1755629117209,-1680.35,0.00023273,30]
[380255082,1755629117255,-400.0,0.00023273,30]
[380255083,1755629117301,-928.42,0.00023273,30]
[380255084,1755629117346,-400.0,0.00023273,30]
[380255085,1755629117389,-400.0,0.00023273,30]
[380255086,1755629117433,-530.82,0.00023273,30]
[380255087,1755629117474,-409.25,0.00023273,30]
[380255088,1755629117515,-459.29,0.00023273,30]
[380255089,1755629117556,-1598.61,0.00023273,30]
[380255090,1755629117596,-400.0,0.00023273,30]
[380255091,1755629117635,-400.0,0.00023273,30]
[380255092,1755629117674,-400.0,0.00023273,30]
[380255093,1755629117714,-638.06,0.00023273,30]
[380255094,1755629117753,-487.78,0.00023273,30]
[380255095,1755629117792,-424.27,0.00023273,30]
[380255096,1755629118116,-400.0,0.00023273,30]
[380255097,1755629118178,-400.0,0.00023273,30]
[380255098,1755629118222,-809.08,0.00023273,30]
[380255099,1755629118264,-1973.46,0.00023273,30]
[380255100,1755629118307,-1462.97,0.00023273,30]
[380255101,1755629118346,-1262.58,0.00023273,30]
[380255102,1755629118385,-1278.38,0.00023273,30]
[380255103,1755629118425,-690.22,0.00023273,30]
[380255104,1755629118464,-400.0,0.00023273,30]
[380255105,1755629118502,-3607.04,0.00023273,30]
[380255106,1755629118543,-400.0,0.00023273,30]
[380255107,1755629118583,-1812.86,0.00023273,30]
[380255108,1755629118625,-400.0,0.00023273,30]
[380255109,1755629118665,-1116.11,0.00023273,30]
[380255110,1755629118706,-400.0,0.00023273,30]
[380255111,1755629118747,-400.0,0.00023273,30]
[380255112,1755629118791,-1039.75,0.00023273,30]
[380255113,1755629118830,-400.0,0.00023273,30]
[380255114,1755629118873,-1164.24,0.00023273,30]
[380255115,1755629118913,-400.0,0.00023273,30]
[380255116,1755629118953,-2521.52,0.00023273,30]
[380255117,1755629118993,-434.67,0.00023273,30]
[380255118,1755629119037,-1068.58,0.00023273,30]
[380255119,1755629119079,-843.85,0.00023273,30]
[380255120,1755629119125,-400.0,0.00023273,30]
[380255121,1755629119173,-2456.22,0.00023273,30]
[380255122,1755629119218,-400.0,0.00023273,30]
[380255123,1755629119262,-400.0,0.00023273,30]
[380255124,1755629119304,-290.34188778,0.00023273,30]
[380255125,1755629119346,-2171.93,0.00023273,30]
[380255126,1755629119388,-400.0,0.00023273,30]
[380255127,1755629119429,-787.51,0.00023273,30]
[380255128,1755629119470,-468.46,0.00023273,30]
[380255129,1755629119509,-512.82240923,0.00023273,30]
[380255130,1755629119548,-1002.73,0.00023273,30]
[380255131,1755629119586,-441.51,0.00023273,30]
[380255132,1755629119625,-1635.1,0.00023273,30]
[380255133,1755629119664,-2667.42,0.00023273,30]
[380255134,1755629119705,-520.27,0.00023273,30]
[380255135,1755629119746,-3205.14,0.00023273,30]
[380255136,1755629119790,-400.0,0.00023273,30]
[380255137,1755629119831,-423.67,0.00023273,30]
[380255138,1755629119874,-400.0,0.00023273,30]
[380255139,1755629119914,-910.8,0.00023273,30]
[380255140,1755629119952,-681.27,0.00023273,30]
[380255141,1755629119991,-400.0,0.00023273,30]
[380255142,1755629120030,-438.15,0.00023273,30]
[380255143,1755629120068,-400.0,0.00023273,30]
[380255144,1755629120107,-400.0,0.00023273,30]
[380255145,1755629120147,-2883.47,0.00023273,30]
[380255146,1755629120197,-400.0,0.00023273,30]
[380255147,1755629120245,-2521.07,0.00023273,30]
[380255148,1755629120288,-400.0,0.00023273,30]
[380255149,1755629120330,-1084.44,0.00023273,30]
[380255150,1755629120372,-400.0,0.00023273,30]
[380255151,1755629120412,-435.75,0.00023273,30]
[380255152,1755629120452,-417.8,0.00023273,30]
[380255153,1755629120492,-1249.59,0.00023273,30]
[380255154,1755629120532,-400.0,0.00023273,30]
[380255155,1755629120571,-400.0,0.00023273,30]
[380255156,1755629120612,-400.0,0.00023273,30]
[380255157,1755629120651,-647.84,0.00023273,30]
[380255158,1755629120690,-400.0,0.00023273,30]
[380255159,1755629120728,-3553.4,0.00023273,30]
[380255160,1755629120767,-400.0,0.00023273,30]
[380255161,1755629120805,-400.0,0.00023273,30]
[380255162,1755629120846,-639.82,0.00023273,30]
[380255163,1755629120883,-409.67,0.00023273,30]
[380255164,1755629120920,-2892.32,0.00023273,30]
[380255165,1755629120957,-400.0,0.00023273,30]
[380255166,1755629120993,-250.0,0.00023273,30]
[380255167,1755629121035,-474.61030387,0.00023273,30]
[380255168,1755629121073,-400.0,0.00023273,30]
[380255169,1755629121111,-928.65,0.00023273,30]
[380255170,1755629121152,-400.0,0.00023273,30]
[380255171,1755629121190,-3273.95,0.00023273,30]
[380255172,1755629121230,-400.0,0.00023273,30]
[380255173,1755629121268,-400.0,0.00023273,30]
[380255174,1755629121308,-934.06,0.00023273,30]
[380255175,1755629121346,-1018.47,0.00023273,30]
[380255176,1755629121384,-950.38,0.00023273,30]
[380255177,1755629121422,-400.0,0.00023273,30]
[380255178,1755629121459,-523.61,0.00023273,30]
[380255179,1755629121496,-400.0,0.00023273,30]
[380255180,1755629121534,-602.65,0.00023273,30]
[380255181,1755629121572,-400.0,0.00023273,30]
[380255182,1755629121610,-947.25,0.00023273,30]
[380255183,1755629121648,-400.0,0.00023273,30]
[380255184,1755629121686,-400.0,0.00023273,30]
[380255185,1755629121724,-2335.47,0.00023273,30]
[380255186,1755629121763,-400.0,0.00023273,30]
[380255187,1755629121804,-400.0,0.00023273,30]
[380255188,1755629121844,-400.0,0.00023273,30]
[380255189,1755629121882,-1703.34,0.00023273,30]
[380255190,1755629121920,-400.0,0.00023273,30]
[380255191,1755629121959,-2230.59,0.00023273,30]
[380255192,1755629121996,-2231.92,0.00023273,30]
[380255193,1755629122034,-400.0,0.00023273,30]
[380255194,1755629122072,-400.0,0.00023273,30]
[380255195,1755629122113,-400.0,0.00023273,30]
[380255196,1755629122158,-400.0,0.00023273,30]
[380255197,1755629122201,-1197.44,0.00023273,30]
[380255198,1755629122245,-418.98449568,0.00023273,30]
[380255199,1755629122289,-400.0,0.00023273,30]
[380255200,1755629122332,-400.0,0.00023273,30]
[380255201,1755629122378,-400.0,0.00023273,30]
[380255202,1755629122420,-418.88,0.00023273,30]
[380255203,1755629122461,-631.62,0.00023273,30]
[380255204,1755629122502,-400.0,0.00023273,30]
[380255205,1755629122542,-958.06,0.00023273,30]
[380255206,1755629122581,-839.44,0.00023273,30]
[380255207,1755629122623,-1287.5,0.00023273,30]
[380255208,1755629122664,-974.31,0.00023273,30]
[380255209,1755629122705,-478.8,0.00023273,30]
[380255210,1755629122745,-400.0,0.00023273,30]
[380255211,1755629123223,-400.0,0.00023273,30]
[380255212,1755629123266,-1703.24,0.00023273,30]
[380255213,1755629123306,-400.0,0.00023273,30]
[380255214,1755629123345,-400.0,0.00023273,30]
[380255215,1755629123385,-400.0,0.00023273,30]
[380255216,1755629123424,-2272.08,0.00023273,30]
[380255217,1755629123465,-400.0,0.00023273,30]
[380255218,1755629123506,-753.97,0.00023273,30]
[380255219,1755629123547,-958.91,0.00023273,30]
[380255220,1755629123587,-1298.34,0.00023273,30]
[380255221,1755629123628,-762.03,0.00023273,30]
[380255222,1755629123670,-487.74,0.00023273,30]
[380255223,1755629123710,-400.0,0.00023273,30]
[380255224,1755629123752,-1074.76,0.00023273,30]
[380255225,1755629123793,-400.0,0.00023273,30]
[380255226,1755629123832,-400.0,0.00023273,30]
[380255227,1755629123873,-2939.62,0.00023273,30]
[380255228,1755629123911,-965.63,0.00023273,30]
[380255229,1755629123950,-1587.36,0.00023273,30]
[380255230,1755629123989,-400.0,0.00023273,30]
[380255231,1755629124029,-519.21,0.00023273,30]
[380255232,1755629124068,-400.0,0.00023273,30]
[380255233,1755629124108,-1112.2,0.00023273,30]
[380255234,1755629124148,-631.78,0.00023273,30]
[380255235,1755629124189,-400.0,0.00023273,30]
[380255236,1755629124232,-402.4,0.00023273,30]
[380255237,1755629124273,-400.0,0.00023273,30]
[380255238,1755629124313,-1175.49,0.00023273,30]
[380255239,1755629124354,-1175.41,0.00023273,30]
[380255240,1755629124393,-1927.65,0.00023273,30]
[380255241,1755629124433,-400.0,0.00023273,30]
[380255242,1755629124472,-2825.83,0.00023273,30]
[380255243,1755629124511,-889.98,0.00023273,30]
[380255244,1755629124549,-400.0,0.00023273,30]
[380255245,1755629124587,-1326.08,0.00023273,30]
[380255246,1755629124625,-1985.51,0.00023273,30]
[380255247,1755629124664,-400.0,0.00023273,30]
[380255248,1755629124702,-2034.81,0.00023273,30]
[380255249,1755629124741,-1991.21,0.00023273,30]
[380255250,1755629124780,-517.06,0.00023273,30]
[380255251,1755629124820,-400.0,0.00023273,30]
[380255252,1755629124859,-400.0,0.00023273,30]
[380255253,1755629124897,-400.0,0.00023273,30]
[380255254,1755629124936,-2558.43,0.00023273,30]
[380255255,1755629124978,-1152.19,0.00023273,30]
[380255256,1755629125022,-2164.45,0.00023273,30]
[380255257,1755629125065,-903.36,0.00023273,30]
[380255258,1755629125107,-1488.41,0.00023273,30]
[380255259,1755629125154,-400.0,0.00023273,30]
[380255260,1755629125200,-400.0,0.00023273,30]
[380255261,1755629125246,-400.0,0.00023273,30]
[380255262,1755629125292,-1489.72,0.00023273,30]
[380255263,1755629125337,-400.0,0.00023273,30]
[380255264,1755629125383,-893.93,0.00023273,30]
[380255265,1755629125428,-400.0,0.00023273,30]
[380255266,1755629125473,-1715.57,0.00023273,30]
[380255267,1755629125523,-2815.13,0.00023273,30]
[380255268,1755629125565,-2617.8,0.00023273,30]
[380255269,1755629125607,-2955.6,0.00023273,30]
[380255270,1755629125648,-400.0,0.00023273,30]
[380255271,1755629125689,-400.0,0.00023273,30]
[380255272,1755629125729,-400.0,0.00023273,30]
[380255273,1755629125771,-552.81,0.00023273,30]
[380255274,1755629125811,-843.59,0.00023273,30]
[380255275,1755629125850,-2441.62,0.00023273,30]
[380255276,1755629125889,-588.75,0.00023273,30]
[380255277,1755629125930,-2107.08,0.00023273,30]
[380255278,1755629125969,-909.92,0.00023273,30]
[380255279,1755629126006,-2053.89,0.00023273,30]
[380255280,1755629126044,-400.0,0.00023273,30]
[380255281,1755629126083,-526.99,0.00023273,30]
[380255282,1755629126124,-400.0,0.00023273,30]
[380255283,1755629126165,-1005.69,0.00023273,30]
[380255284,1755629126207,-2030.2,0.00023273,30]
[380255285,1755629126260,-503.36,0.00023273,30]
[380255286,1755629126306,-517.13,0.00023273,30]
[380255287,1755629126347,-400.0,0.00023273,30]
[380255288,1755629126386,-1146.29,0.00023273,30]
[380255289,1755629126423,-400.0,0.00023273,30]
[380255290,1755629126459,-400.0,0.00023273,30]
[380255291,1755629126496,-400.0,0.00023273,30]
[380255292,1755629126535,-2726.73,0.00023273,30]